Cogmind - Beta 10.2 @@@ ROGUE MODE // 2022.01.18 @ 02:18:07 Player: Sara Result: Destroyed by as-01838 with Assembled Rifle Performance ------------- Evolutions (0) 0 Regions Visited (2) 400 Robots Destroyed (113) 565 Value Destroyed (992) 992 Prototype IDs (0) 0 Alien Tech Used (0) 0 Bonus (0) 0 TOTAL SCORE: 1957 Bonus ------- None Cogmind --------- Core Integrity 0/250 Matter 255/300 Energy 250/250 System Corruption 2% Temperature Cool (0) Movement Treading (160) Location -10/Mines Parts ------- > --- POWER (1) -------- Ion Engine > --- PROPULSION (2) --- Light Treads Light Treads > --- UTILITY (2) ------ Large Storage Unit > --- WEAPON (2) ------- Grenade Launcher > --- INVENTORY (10) --- Light Treads Aluminum Leg Aluminum Leg Signal Interpreter Beam Cannon Datajack Peak State ------------ > --- POWER ------------ Ion Engine > --- PROPULSION ------- Light Treads Light Treads > --- UTILITY ---------- Large Storage Unit Improved Terrain Scanner > --- WEAPON ----------- EM Pulse Gun EM Pulse Gun > --- INVENTORY -------- Light Ion Engine Light Treads Light Treads Light Treads Aluminum Leg Aluminum Leg Signal Interpreter EM Pulse Gun Grenade Launcher Grenade Launcher [Rating: 9] Favorites ----------- Power Ion Engine Engine Ion Engine Propulsion Light Treads Treads Light Treads Leg Aluminum Leg Utility Improved Terrain Scanner Device Improved Terrain Scanner Storage Large Storage Unit Weapon EM Pulse Gun Energy Gun EM Pulse Gun Energy Cannon Beam Cannon Ballistic Gun Light Assault Rifle Launcher Grenade Launcher Build | -11 -10 -10 ------- Run | Scr Mat Min Slots Evolved . | . . . Power . | . . . Propulsion . | . . . Utility . | . . . Weapon . | . . . Parts Attached 26 | 4 18 4 Power 3 | . 3 . Engine 3 | . 3 . Core . | . . . Reactor . | . . . Propulsion 6 | 2 2 2 Treads 6 | 2 2 2 Leg . | . . . Wheel . | . . . Hover . | . . . Flight . | . . . Utility 3 | 1 2 . Device 1 | 1 . . Storage 2 | . 2 . Processor . | . . . Hackware . | . . . Protection . | . . . Artifact . | . . . Weapon 14 | 1 11 2 Energy Gun 9 | 1 8 . Energy Cannon 1 | . 1 . Ballistic Gun 1 | . 1 . Ballistic Cannon . | . . . Launcher 3 | . 1 2 Special Weapon . | . . . Impact Weapon . | . . . Slashing Weapon . | . . . Piercing Weapon . | . . . Special Melee Weapon . | . . . Unidentified Prototypes . | . . . Parts Lost 10 | . 5 5 Power 2 | . 2 . Propulsion 2 | . . 2 Utility 1 | . . 1 Weapon 5 | . 3 2 Highest Loss Streak 4 | . 2 4 Average Slot Usage (%) 97 | . 99 82 Engine 13 | . 13 14 Treads 27 | . 28 27 Device 12 | . 14 . Storage 14 | . 14 14 Energy Gun 23 | . 26 . Launcher 2 | . . 26 Naked Turns . | . . . Heaviest Build 27 | 12 27 27 Greatest Support 40 | 40 40 40 Greatest Overweight (x) . | . . . Average Overweight (x) . | . . . Largest Inventory Capacity 10 | 6 10 10 Average Capacity 8 | 6 9 10 Most Carried 10 | 6 10 9 Average Carried 7 | 6 8 6 Final Capacity 10 | 6 10 10 Final Carried 9 | 6 9 6 Class Distribution -------------------- 98% | Mutant Dominant Class ---------------- Mutant | -10/Materials Mutant | -10/Mines Resources | -11 -10 -10 ----------- Run | Scr Mat Min Matter Collected 505 | 240 185 80 Remotely . | . . . Salvage Created 3468 | 346 2988 134 Parts 256 | 37 209 10 Haulers Intercepted 2 | . 2 . Recyclers Shooed 4 | . 4 . Parts Field Recycled . | . . . Retrieved Matter . | . . . Parts Self-Destructed . | . . . Prevented . | . . . Kills | -11 -10 -10 ------- Run | Scr Mat Min Combat Hostiles Destroyed 32 | . 16 16 Guns 14 | . 14 . Cannons 2 | . . 2 AOE 15 | . 1 14 Classes Destroyed 10 | 3 6 1 Worker 32 | 4 28 . Builder 30 | . 30 . Tunneler 11 | 9 2 . Hauler 2 | . 2 . Recycler 12 | 1 10 1 Operator 1 | . 1 . Watcher 3 | . 3 . Swarmer 12 | . 6 6 Grunt 10 | . 10 . Assembled 10 | . . 10 Best Kill Streak 10 | 4 9 10 Combat Bots Only 10 | . 5 10 Max Kills in Single Turn 4 | 2 2 4 Gunslinging . | . . . Exploded 4 | . 1 4 Melee . | . . . Uniques/NPCs Destroyed . | . . . Combat | -11 -10 -10 -------- Run | Scr Mat Min Damage Taken 1252 | . 938 314 Core 250 | . 199 51 Absorbed by Shields . | . . . Core Remaining (%) 100 | 100 . . Volleys Fired 249 | 16 220 13 Largest 2 | 2 2 2 Hottest 100 | 80 80 100 Shots Fired 470 | 32 420 18 Gun 451 | 32 418 1 Cannon 8 | . . 8 Launcher 11 | . 2 9 Special . | . . . Kinetic . | . . . Thermal 8 | . . 8 Explosive 11 | . 2 9 Electromagnetic 451 | 32 418 1 Robot Hit Streak 13 | 6 13 7 Robot Miss Streak 5 | 2 5 2 Penetration Max . | . . . Secondary Targets . | . . . Shots Hit Robots 238 | 18 213 7 Core Hits 156 | 15 109 32 Critical Hits . | . . . Critical Kills . | . . . Critical Parts Destroyed . | . . . Melee Attacks . | . . . Impact . | . . . Slashing . | . . . Piercing . | . . . Sneak Attacks . | . . . Combat Hostiles . | . . . Follow-up Attacks . | . . . Damage Inflicted 4816 | 363 3413 1040 Guns 3035 | 254 2771 10 Cannons 88 | . . 88 Explosions 1692 | 109 641 942 Melee . | . . . Ramming 1 | . 1 . Kinetic . | . . . Thermal 1033 | 109 641 283 Explosive 747 | . . 747 Electromagnetic 3035 | 254 2771 10 Impact . | . . . Slashing . | . . . Piercing . | . . . Highest Corruption 2 | . 2 2 Average Corruption 2 | . 2 2 Corruption Purged . | . . . Effects 24 | . 20 4 Message Errors 10 | . 8 2 Heat Flow Errors 2 | . 2 . Energy Discharges 7 | . 6 1 Data Loss (minor) 2 | . 2 . Targeting Errors 3 | . 2 1 Overload Shots . | . . . Overflow Damage 56 | . 18 38 Projectiles . | . . . Explosions 56 | . 18 38 Melee . | . . . Knockbacks . | . . . Impact . | . . . Kinetic . | . . . Secondary . | . . . Self-Inflicted Damage 233 | . 128 105 Shots 10 | . 5 5 Rammed 1 | . 1 . Targets Rammed 1 | . 1 . Kicked . | . . . Crushed . | . . . Highest Temperature 212 | 72 212 191 Average Temperature 45 | 29 45 104 Received Heat Transfer 303 | . 303 . Siege Activations . | . . . Robots Corrupted 1 | . 1 . Combat Hostiles 1 | . 1 . Parts Fried 21 | . 21 . Impact Corruptions . | . . . Robots Melted . | . . . Combat Hostiles . | . . . Parts Melted 1 | . . 1 Heat Transferred 1335 | 100 800 435 Parts Sabotaged . | . . . Parts Stolen . | . . . Parts Stripped . | . . . Power Chain Reactions 14 | 2 12 . Missiles Intercepted . | . . . Alert | -11 -10 -10 ------- Run | Scr Mat Min Peak Influence 410 | 70 410 324 Initial 159 | . . 159 Average 162 | 15 202 307 Maximum Alert Level 2 | . 2 1 Low Security (%) 65 | 100 59 . Level 1 31 | . 36 99 Level 2 2 | . 4 . Level 3 . | . . . Level 4 . | . . . Level 5 . | . . . High Security . | . . . Max Security . | . . . Squads Dispatched 3 | . 3 . Investigation 2 | . 2 . Extermination . | . . . Reinforcement 1 | . 1 . Assault . | . . . Garrison . | . . . Intercept . | . . . Construction Impeded . | . . . Haulers Reinforced . | . . . Stealth | -11 -10 -10 --------- Run | Scr Mat Min Distress Signals 1 | . 1 . Communications Jammed . | . . . Distress Signals . | . . . Times Spotted 48 | . 25 23 Peak Tracking Total 18 | . 5 18 Tactical Retreats 3 | . 2 1 Traps | -11 -10 -10 ------- Run | Scr Mat Min Traps Triggered 4 | . 4 . Indirectly . | . . . Trap Hack Attempts . | . . . Triggered . | . . . Disarmed . | . . . Reprogrammed . | . . . Reused . | . . . Traps Extracted . | . . . Installed . | . . . Triggered . | . . . Machines | -11 -10 -10 ---------- Run | Scr Mat Min Machines Disabled 12 | . 9 3 Max in Single Turn 3 | . 3 3 Machines Sabotaged . | . . . Garrisons Compromised . | . . . Overloaded Fab Kills . | . . . Fab Network Shutdowns . | . . . Hacking | -11 -10 -10 --------- Run | Scr Mat Min Machines Accessed 8 | . 8 . Terminals 5 | . 5 . Fabricators . | . . . Repair Stations 1 | . 1 . Recycling Units 2 | . 2 . Scanalyzers . | . . . Garrison Access . | . . . Total Hacks 16 | . 16 . Successful 11 | . 11 . Failed 5 | . 5 . Catastrophic . | . . . Database Lockouts . | . . . Manual 12 | . 12 . Terminals 8 | . 8 . Fabricators . | . . . Repair Stations 3 | . 3 . Recycling Units 5 | . 5 . Scanalyzers . | . . . Garrison Access . | . . . Terminal Hacks 1 | . 1 . Zone Layout 1 | . 1 . Fabricator Hacks . | . . . Repair Station Hacks 1 | . 1 . Scan Component 1 | . 1 . Recycling Unit Hacks . | . . . Scanalyzer . | . . . Garrison Access Hacks . | . . . Unauthorized Hacks 9 | . 9 . Terminals 6 | . 6 . Track 5 | . 5 . Operators 1 | . 1 . Fabricators . | . . . Repair Stations . | . . . Recycling Units 3 | . 3 . Reject 2 | . 2 . Recyclers 1 | . 1 . Scanalyzers . | . . . Garrison Access . | . . . Data Cores Recovered . | . . . Used . | . . . Hacking Detections 6 | . 6 . Full Trace Events 2 | . 2 . Feedback Events . | . . . Feedback Blocked . | . . . Robot Schematics Acquired . | . . . Robots Built . | . . . Matter . | . . . Time . | . . . Total Robot Build Rating . | . . . Part Schematics Acquired . | . . . Parts Built . | . . . Matter . | . . . Time . | . . . Total Part Build Rating . | . . . Parts Repaired . | . . . Time . | . . . Parts Recycled . | . . . Recycled Matter . | . . . Retrieved Matter . | . . . Retrieved Components . | . . . Parts Scanalyzed . | . . . Part Schematics Acquired . | . . . Parts Damaged . | . . . Bothacking | -11 -10 -10 ------------ Run | Scr Mat Min Used RIF Installer . | . . . Robots Hacked . | . . . Non-combat . | . . . Combat . | . . . Robot Hacks Applied . | . . . Relay Couplers Released . | . . . Robots Rewired . | . . . Allies Hacked . | . . . Hacks Repelled . | . . . Allies | -11 -10 -10 -------- Run | Scr Mat Min Total Allies . | . . . Largest Group . | . . . Highest-Rated Group . | . . . Highest-Rated Ally . | . . . Total Orders . | . . . Ally Attacks . | . . . Total Damage . | . . . Kills . | . . . Allies Corrupted . | . . . Allies Melted . | . . . Intel | -11 -10 -10 ------- Run | Scr Mat Min Robot Analysis Total . | . . . Derelict Logs Recovered . | . . . Drone Launches . | . . . Drone Recoveries . | . . . Exploration | -11 -10 -10 ------------- Run | Scr Mat Min Turns Passed 4689 | 1184 3163 342 Spaces Moved 1618 | 62 1367 189 Core . | . . . Treads 1618 | 62 1367 189 Legs . | . . . Wheels . | . . . Hover . | . . . Flight . | . . . Fastest Speed 160 | 160 160 160 Average Speed 160 | 160 160 160 Slowest Speed 160 | 160 160 160 Overloaded Moves . | . . . Propulsion Burnouts . | . . . Robots Hopped . | . . . Cave-ins Triggered . | . . . Exploration Rate (%) 51 | 4 95 56 Regions Visited 2 Branch Regions 1 Pre-discovered Areas . | . . . Known Exits Taken . | . . . Unknown Exits Taken 2 | 1 1 . Scrap Searched 1 | . . 1 Spaces Dug . | . . . Terrain Destroyed 199 | 3 97 99 Melee . | . . . Projectile . | . . . AOE 199 | 3 97 99 Terrain Rammed . | . . . Walls Destroyed . | . . . Machines Disabled . | . . . Actions | -11 -10 -10 --------- Run | Scr Mat Min Total 3250 | 1113 1926 211 Wait 1334 | 1032 297 5 Move 1616 | 61 1366 189 Hop . | . . . Pick Up 11 | . 11 . Fast Attach 7 | 1 6 . Attach 7 | . 4 3 Detach . | . . . Swap 12 | 3 8 1 Drop 13 | . 13 . Fire 249 | 16 220 13 Melee . | . . . Ram . | . . . Kick . | . . . Crush 1 | . 1 . Escape Stasis . | . . . Rewire . | . . . Trap . | . . . Miscellaneous . | . . . Route ------- -11/Scrapyard -10/Materials (discovered 4 exits: [*Mat x3] / [*Min]) -10/Mines History --------- Turn | Location | Event 18 | -11/Scrapyard | Discovered new exit (range 3) 1185 | -11/Scrapyard | Entered Materials 1186 | -10/Materials | Build established: Mutant 1686 | -10/Materials | Discovered new exit (range 15) 3163 | -10/Materials | Discovered new exit (range 5) 3433 | -10/Materials | Discovered new exit (range 15) 3597 | -10/Materials | Core integrity fell below 50% 3748 | -10/Materials | Discovered new exit (range 15) 4348 | -10/Materials | Entered Mines 4351 | -10/Mines | Core integrity fell below 20% 4382 | -10/Mines | Met a Derelict bent on vengeance 4387 | -10/Mines | Lost 4 parts (2n1u1w) 4678 | -10/Mines | Assembled infested the area 4690 | -10/Mines | Destroyed by as-01838 with Assembled Rifle Last Messages --------------- 04470_ 23-KK1(g) slips into the shadows. 04475_ K-01 Serf collects debris. 04479_ OWPF&O 04678_ ALERT: Infestation in the mines, dispatching Demolisher response squad. 04679_ K-01 Serf destroyed. 04682_ as-51852 destroyed. 04682_ as-32510 destroyed. 04682_ as-40421 destroyed. 04682_ Destroyed Lgt. Ion Engine. 04683_ K-01 Serf destroyed. 04685_ as-50177 destroyed. 04685_ as-31704 destroyed. 04685_ as-22360 destroyed. 04688_ Grenade Launcher destroyed. 04689_ as-51846 destroyed. 04689_ as-67561 destroyed. 04689_ as-16014 destroyed. 04689_ as-88037 destroyed. Map ----- +----------------------------------------------------+ | ??## #???# #?????# #??# ####### | | ???# #??## #####?# ##?# | | ??## ## #?## ### #### | | ??# ## ### ### #?########### | | ??# # ## #???????# | | ??# #???????# | | ??## ##### #???????# ## | | ???## ##??## ##???????# ?# | | ????### #???## ###????????# ??# | | ??????## #????## ####??????????#???# | | ??????## ####??## ##?????????????????# | | ??##### #???## ##??????????????????## | | ?## ## ##########????????????????????? | | ?# ### #????????????????????????? | | ?# ##?###### #????????????????????????? | | ?## #???????# #????????????????????????? | | ??## ##???????# #????????????????????????? | | ???#####????????# #????????????????????????? | | ????????????????# #????????????????????????? | | ????????????????# #????????????????????????? | | ????????????????# #????????????????????????? | | ????????????????# #????????????????????????? | | ?????????######## #????????? ###??????????? | | ?????????# ####### % #??????????? | | ?????????# ###### % #??????????? | | ???????????????# @=% a % ????????? | | ???????????????# = aa ????????? | | ???????????????# # a #??????????? | | ???????????????# ###### ##??????????? | | ???????????????# #?????? ##???????????? | | ???????????????# #????????####????????????? | | ???????????????# #????????????????????????? | | ???????????????# #????????????????????????? | | ???????????????# #????????????????????????? | | ???????????????# #????????????????????????? | | ???????????????# #????????????????????????? | | ???????????????# ?????????????????????????? | | ???????????????# ?????????????????????????? | | ???????????????# ?????????????????????????? | | ??????????????? ?????????????????????????? | | ???????????????" ?????????????????????????? | | ???????????????" ?????????????????????????? | | ???????????????? ?????????????????????????? | | ???????????????????????????????????????????? | | ???????????????????????????????????????????? | | ???????????????????????????????????????????? | | ???????????????????????????????????????????? | | ???????????????????????????????????????????? | | | | | +----------------------------------------------------+ Best States ------------- Heat Dissipation 25 Energy Generation 10 Energy Capacity 250 Matter Stores 300 Matter Capacity 300 Sight Range 16 Terrain Scan Range 16 Terrain Scan Density 10 Evasion (%) 40 Recoil Reduction 2 Item Schematics ----------------- None Robot Schematics ------------------ None Fabricated ------------ Nothing Alien Tech Used ----------------- None Achievements -------------- None Challenges ------------ None Game ------ Seed DeepLauncherComputer Manual? 0 Play Time 00:21:44 Cumulative 80.8 hours Start 2022.01.18 @ 01:58:02 End 2022.01.18 @ 02:18:07 Sessions 1 Manual Loads 0 Difficulty Rogue Special Mode None Game No. 96 Rogue 96 Adventurer 0 Explorer 0 Win Type - Total 0 Types 0/0/0/0/0/0/0/0/0 Lore% 51 Gallery% 50 Achievement% 40 Wizard Run 0 Options --------- ASCII 0 Keyboard 0 Movement Numpad Keybinds 0 Fullscreen 1 Font 18/X11Bold Map View 76x50 Tactical HUD 1 Map Filters NONE Filters NONE Steam 1 RUN: dd2cb0d3-41e8-4082-af83-85232a36620f